fUST/lending_fUST_20250819
["ID","MTS","AMOUNT","RATE_DAILY","PERIOD"]
[380199963,1755606663619,-3354.34,0.00019726,2]
[380199964,1755606663628,-480.0,0.00019726,2]
[380199965,1755606663637,-480.0,0.00019726,2]
[380199966,1755606663647,-480.0,0.00019726,2]
[380199967,1755606663657,-480.0,0.00019726,2]
[380199968,1755606663666,-990.79,0.00019726,2]
[380199969,1755606663676,-480.0,0.00019726,2]
[380199970,1755606663685,-480.0,0.00019726,2]
[380199971,1755606663695,-480.0,0.00019726,2]
[380199972,1755606663705,-480.0,0.00019726,2]
[380199973,1755606663715,-480.0,0.00019726,2]
[380199974,1755606663725,-480.0,0.00019726,2]
[380199975,1755606663735,-480.0,0.00019726,2]
[380199976,1755606663745,-309.12395776,0.00019726,2]
[380199977,1755606663755,-1149.59,0.00019726,2]
[380199978,1755606663764,-480.0,0.00019726,2]
[380199979,1755606663774,-500.0,0.00019726,2]
[380199980,1755606663784,-480.0,0.00019726,2]
[380199981,1755606663793,-480.0,0.00019726,2]
[380199982,1755606663802,-480.0,0.00019726,2]
[380199983,1755606663811,-480.0,0.00019726,2]
[380199984,1755606663820,-2624.4,0.00019726,2]
[380199985,1755606663830,-9959.75,0.00019726,2]
[380199986,1755606663839,-480.0,0.00019726,2]
[380199987,1755606663849,-480.0,0.00019726,2]
[380199988,1755606663858,-480.0,0.00019726,2]
[380199989,1755606663868,-480.0,0.00019726,2]
[380199990,1755606663877,-480.0,0.00019726,2]
[380199991,1755606663886,-151.0,0.00019726,2]
[380199992,1755606663895,-151.0,0.00019726,2]
[380199993,1755606663904,-615.12,0.00019726,2]
[380199994,1755606663913,-1142.25,0.00019726,2]
[380199995,1755606663922,-480.0,0.00019726,2]
[380199996,1755606663931,-480.0,0.00019726,2]
[380199997,1755606663941,-480.0,0.00019726,2]
[380199998,1755606663951,-223.234333,0.00019726,2]
[380199999,1755606663960,-2872.66,0.00019726,2]
[380200000,1755606663969,-480.0,0.00019726,2]
[380200001,1755606663978,-1200.41,0.00019726,2]
[380200002,1755606663988,-480.0,0.00019726,2]
[380200003,1755606663997,-480.0,0.00019726,2]
[380200004,1755606664006,-599.53817664,0.00019726,2]
[380200005,1755606664015,-480.0,0.00019726,2]
[380200006,1755606664023,-9859.29,0.00019726,2]
[380200007,1755606664033,-480.0,0.00019726,2]
[380200008,1755606664042,-480.0,0.00019726,2]
[380200009,1755606664051,-172.816439,0.00019726,2]
[380200010,1755606664059,-480.0,0.00019726,2]
[380200011,1755606664069,-935.5431842,0.00019726,2]
[380200012,1755606664079,-198.0605393,0.00019726,2]
[380200013,1755606664089,-587.7886402,0.00019726,2]
[380200014,1755606664099,-153.0,0.00019726,2]
[380200015,1755606664108,-500.36278189,0.00019773,2]
[380200016,1755606664117,-500.0,0.00019773,2]
[380200017,1755606664127,-500.0,0.00019773,2]
[380200018,1755606664136,-500.0,0.00019773,2]
[380200019,1755606664146,-157.23155863,0.00019773,2]
[380200020,1755606664155,-500.0,0.00019773,2]
[380200021,1755606664165,-341.34091482,0.00019773,2]
[380200022,1755606664177,-500.4708925,0.00019773,2]
[380200023,1755606664187,-500.0,0.00019773,2]
[380200024,1755606664196,-160.26021181,0.00019773,2]
[380200025,1755606664208,-157.65417188,0.00019773,2]
[380200026,1755606664218,-500.18888263,0.00019773,2]
[380200027,1755606664228,-501.6669573,0.00019773,2]
[380200028,1755606664238,-500.0,0.00019773,2]
[380200029,1755606664248,-500.0,0.00019773,2]
[380200030,1755606664258,-500.47208219,0.00019773,2]
[380200031,1755606664269,-500.0,0.00019773,2]
[380200032,1755606664283,-151.0,0.00019773,2]
[380200033,1755606664292,-151.0,0.00019773,2]
[380200034,1755606664302,-151.0,0.00019773,2]
[380200035,1755606664312,-153.952636,0.00019773,2]
[380200036,1755606664322,-153.952636,0.00019773,2]
[380200037,1755606664333,-151.0,0.000198,2]
[380200038,1755606664345,-151.0,0.000198,2]
[380200039,1755606664355,-151.0,0.0001981,2]
[380200040,1755606664364,-151.0,0.0001981,2]
[380200041,1755606664374,-223.020353,0.0001981,2]
[380200042,1755606664384,-151.0,0.0001981,2]
[380200043,1755606664393,-418.782207,0.00019863,2]
[380200044,1755606664403,-159.43811611,0.00019863,2]
[380200045,1755606664413,-151.0,0.000199,2]
[380200046,1755606664422,-5584.57184196,0.000199,2]
[380200047,1755606664432,-579.67881727,0.000199,2]
[380200048,1755606664441,-256.0,0.00019967,2]
[380200049,1755606664450,-500.0,0.00019973,2]
[380200050,1755606664459,-156.34548963,0.00019973,2]
[380200051,1755606664468,-500.0,0.00019973,2]
[380200052,1755606664478,-502.59429379,0.00019973,2]
[380200053,1755606664487,-500.0,0.00019973,2]
[380200054,1755606664497,-500.0,0.00019973,2]
[380200055,1755606664506,-500.0,0.00019973,2]
[380200056,1755606664516,-161.09194451,0.00019973,2]
[380200057,1755606664525,-500.0,0.00019973,2]
[380200058,1755606664535,-500.0,0.00019973,2]
[380200059,1755606664546,-921.69697578,0.0002,2]
[380200060,1755606664556,-6169.31243597,0.0002,2]
[380200061,1755606664566,-68348.04990411,0.0002,2]
[380200062,1755606664575,-28686.62269816,0.0002,2]
[380200063,1755606664585,-16991.6542151,0.0002,7]
[380200064,1755606664603,-500.0,0.0002,7]
[380200065,1755606664619,-32974.3457849,0.0002,7]
[380200066,1755606664628,-12685.85563623,0.0002,7]
[380200067,1755606664637,-763.0,0.0002,7]
[380200068,1755606664646,-480.0,0.0002,2]
[380200069,1755606664656,-480.0,0.0002,2]
[380200070,1755606664665,-480.0,0.0002,2]
[380200071,1755606664674,-467.43614002,0.0002,2]
[380200072,1755606664684,-480.0,0.0002,2]
[380200073,1755606664693,-480.0,0.0002,2]
[380200074,1755606664703,-480.0,0.0002,2]
[380200075,1755606664712,-309.08863514,0.0002,2]
[380200076,1755606664721,-569.79597341,0.0002,2]
[380200077,1755606664731,-480.0,0.0002,2]
[380200078,1755606664740,-480.0,0.0002,2]
[380200079,1755606664752,-480.0,0.0002,2]
[380200080,1755606664762,-480.0,0.0002,2]
[380200081,1755606664771,-480.0,0.0002,2]
[380200082,1755606664781,-480.0,0.0002,2]
[380200083,1755606664791,-480.0,0.0002,2]
[380200084,1755606664800,-480.0,0.0002,2]
[380200085,1755606664810,-480.0,0.0002,2]
[380200086,1755606664819,-151.0,0.0002,2]
[380200087,1755606664828,-480.0,0.0002,2]
[380200088,1755606664838,-91.58241355,0.0002,2]
[380200089,1755606664853,-59.41758645,0.0002,2]
[380200090,1755606664863,-480.0,0.0002,2]
[380200091,1755606664872,-480.0,0.0002,2]
[380200092,1755606664881,-426.72557755,0.0002,2]
[380200093,1755606665102,-351.57161387,0.00019178,2]
[380200094,1755606665115,-676.72838613,0.00019178,2]
[380200095,1755606665125,-73.8708095,0.00019178,2]
[380200096,1755606665136,-472.4091905,0.00019178,2]
[380200097,1755606665146,-480.0,0.00019178,2]
[380200098,1755606665156,-381.83944249,0.00019178,2]
[380200099,1755606665166,-1169.86,0.00019452,2]
[380200100,1755606665179,-546.28,0.00019452,2]
[380200101,1755606665189,-1028.3,0.00019452,2]
[380200102,1755606665198,-1169.86,0.00019726,2]
[380200103,1755606665208,-546.28,0.00019726,2]
[380200104,1755606665218,-1028.3,0.00019726,2]
[380200105,1755606665228,-53.27442245,0.0002,2]
[380200106,1755606665237,-480.0,0.0002,2]
[380200107,1755606665247,-580.45267894,0.0002,2]
[380200108,1755606665258,-480.0,0.0002,2]
[380200109,1755606665267,-480.0,0.0002,2]
[380200110,1755606665276,-480.0,0.0002,2]
[380200111,1755606665286,-480.0,0.0002,2]
[380200112,1755606665295,-480.0,0.0002,2]
[380200113,1755606665304,-480.0,0.0002,2]
[380200114,1755606665313,-151.426035,0.0002,2]
[380200115,1755606665323,-480.0,0.0002,2]
[380200116,1755606665332,-379.49217613,0.0002,2]
[380200117,1755606665348,-100.50782387,0.0002,2]
[380200118,1755606665357,-480.0,0.0002,2]
[380200119,1755606665367,-480.0,0.0002,2]
[380200120,1755606665376,-480.0,0.0002,2]
[380200121,1755606665386,-151.0,0.0002,2]
[380200122,1755606665396,-151.0,0.0002,2]
[380200123,1755606665409,-480.0,0.0002,2]
[380200124,1755606665419,-480.0,0.0002,2]
[380200125,1755606665428,-151.0,0.0002,2]
[380200126,1755606665437,-480.0,0.0002,2]
[380200127,1755606665447,-463.40846599,0.0002,2]
[380200128,1755606665456,-151.0,0.0002,2]
[380200129,1755606665465,-151.0,0.0002,2]
[380200130,1755606665474,-480.0,0.0002,2]
[380200131,1755606665483,-480.0,0.0002,2]
[380200132,1755606665492,-480.0,0.0002,2]
[380200133,1755606665501,-151.0,0.0002,2]
[380200134,1755606665511,-151.0,0.0002,2]
[380200135,1755606665520,-480.0,0.0002,2]
[380200136,1755606665529,-151.0,0.0002,2]
[380200137,1755606665539,-151.0,0.0002,2]
[380200138,1755606665548,-480.0,0.0002,2]
[380200139,1755606665558,-151.0,0.0002,2]
[380200140,1755606665568,-487.06010431,0.0002,2]
[380200141,1755606665578,-151.0,0.0002,2]
[380200142,1755606665587,-151.0,0.0002,2]
[380200143,1755606665598,-480.0,0.0002,2]
[380200144,1755606665608,-480.0,0.0002,2]
[380200145,1755606665617,-480.0,0.0002,2]
[380200146,1755606665626,-480.0,0.0002,2]
[380200147,1755606665635,-480.0,0.0002,2]
[380200148,1755606665645,-480.0,0.0002,2]
[380200149,1755606665654,-480.0,0.0002,2]
[380200150,1755606665663,-480.0,0.0002,2]
[380200151,1755606665672,-480.0,0.0002,2]
[380200152,1755606665681,-480.0,0.0002,2]
[380200153,1755606665691,-480.0,0.0002,2]
[380200154,1755606665700,-486.36,0.0002,2]
[380200155,1755606665709,-224.54724031,0.0002,2]
[380200156,1755606665719,-480.0,0.0002,2]
[380200157,1755606665728,-151.0,0.0002,2]
[380200158,1755606665737,-151.0,0.0002,2]
[380200159,1755606665746,-480.0,0.0002,2]
[380200160,1755606665755,-480.0,0.0002,2]
[380200161,1755606665764,-480.0,0.0002,2]
[380200162,1755606665773,-480.0,0.0002,2]
[380200163,1755606665782,-480.0,0.0002,2]
[380200164,1755606665791,-480.0,0.0002,2]
[380200165,1755606665801,-540.09,0.0002,2]
[380200166,1755606665810,-480.0,0.0002,2]
[380200167,1755606665911,-480.0,0.0002,2]
[380200168,1755606665938,-441.96658977,0.0002,2]
[380200169,1755606665948,-480.0,0.0002,2]
[380200170,1755606665959,-480.0,0.0002,2]
[380200171,1755606665968,-480.0,0.0002,2]
[380200172,1755606665977,-480.0,0.0002,2]
[380200173,1755606665986,-480.0,0.0002,2]
[380200174,1755606665995,-480.0,0.0002,2]
[380200175,1755606666004,-480.0,0.0002,2]
[380200176,1755606666013,-864.15,0.0002,2]
[380200177,1755606666023,-480.0,0.0002,2]
[380200178,1755606666032,-151.0,0.0002,2]
[380200179,1755606666041,-151.0,0.0002,2]
[380200180,1755606666050,-480.0,0.0002,2]
[380200181,1755606666060,-480.0,0.0002,2]
[380200182,1755606666069,-483.16034871,0.0002,2]
[380200183,1755606666078,-231.62408221,0.0002,2]
[380200184,1755606666087,-401.91726735,0.0002,2]
[380200185,1755606666098,-151.538521,0.0002,2]
[380200186,1755606666107,-480.0,0.0002,2]
[380200187,1755606666117,-480.0,0.0002,2]
[380200188,1755606666126,-480.0,0.0002,2]
[380200189,1755606666136,-480.0,0.0002,2]
[380200190,1755606666145,-151.0,0.0002,2]
[380200191,1755606666154,-151.0,0.0002,2]
[380200192,1755606666164,-480.0,0.0002,2]
[380200193,1755606666175,-480.0,0.0002,2]
[380200194,1755606666185,-461.40224708,0.0002,2]
[380200195,1755606666194,-480.0,0.0002,2]
[380200196,1755606666203,-151.0,0.0002,2]
[380200197,1755606666212,-151.0,0.0002,2]
[380200198,1755606666222,-151.0,0.0002,2]
[380200199,1755606666232,-461.52992749,0.0002,2]
[380200200,1755606666241,-480.0,0.0002,2]
[380200201,1755606666251,-480.0,0.0002,2]
[380200202,1755606666260,-508.47,0.0002,2]
[380200203,1755606666270,-151.0,0.0002,2]
[380200204,1755606666279,-242.482377,0.0002,2]
[380200205,1755606666288,-151.0,0.0002,2]
[380200206,1755606666297,-242.482377,0.0002,2]
[380200207,1755606666306,-242.482377,0.0002,2]
[380200208,1755606666316,-480.0,0.0002,2]
[380200209,1755606666325,-242.482377,0.0002,2]
[380200210,1755606666334,-242.482377,0.0002,2]
[380200211,1755606666344,-242.482377,0.0002,2]
[380200212,1755606666354,-480.0,0.0002,2]
[380200213,1755606666364,-480.0,0.0002,2]
[380200214,1755606666373,-515.79,0.0002,2]
[380200215,1755606666383,-151.0,0.0002,2]
[380200216,1755606666392,-151.0,0.0002,2]
[380200217,1755606666402,-480.0,0.0002,2]
[380200218,1755606666411,-480.0,0.0002,2]
[380200219,1755606666420,-480.0,0.0002,2]
[380200220,1755606666429,-480.0,0.0002,2]
[380200221,1755606666439,-480.0,0.0002,2]
[380200222,1755606666448,-560.19,0.0002,2]
[380200223,1755606666457,-480.0,0.0002,2]
[380200224,1755606666466,-151.0,0.0002,2]
[380200225,1755606666476,-151.0,0.0002,2]
[380200226,1755606666485,-151.0,0.0002,2]
[380200227,1755606666495,-480.0,0.0002,2]
[380200228,1755606666504,-480.0,0.0002,2]
[380200229,1755606666513,-480.0,0.0002,2]
[380200230,1755606666522,-151.0,0.0002,2]
[380200231,1755606666532,-151.0,0.0002,2]
[380200232,1755606666541,-151.0,0.0002,2]
[380200233,1755606666550,-421.20751745,0.0002,2]
[380200234,1755606666559,-480.0,0.0002,2]
[380200235,1755606666568,-480.0,0.0002,2]
[380200236,1755606666578,-480.0,0.0002,2]
[380200237,1755606666587,-480.0,0.0002,2]
[380200238,1755606666597,-480.0,0.0002,2]
[380200239,1755606666606,-431.74492966,0.0002,2]
[380200240,1755606666615,-480.0,0.0002,2]
[380200241,1755606666624,-480.0,0.0002,2]
[380200242,1755606666633,-480.0,0.0002,2]
[380200243,1755606666643,-480.0,0.0002,2]
[380200244,1755606666652,-480.0,0.0002,2]
[380200245,1755606666661,-480.0,0.0002,2]
[380200246,1755606666670,-480.0,0.0002,2]
[380200247,1755606666679,-308.154346,0.0002,2]
[380200248,1755606666689,-480.0,0.0002,2]
[380200249,1755606666698,-308.154346,0.0002,2]
[380200250,1755606666707,-480.0,0.0002,2]
[380200251,1755606666716,-308.154346,0.0002,2]
[380200252,1755606666725,-308.154346,0.0002,2]
[380200253,1755606666735,-480.0,0.0002,2]
[380200254,1755606666744,-480.0,0.0002,2]
[380200255,1755606666754,-480.0,0.0002,2]
[380200256,1755606666763,-164.43658284,0.0002,2]
[380200257,1755606666773,-480.0,0.0002,2]
[380200258,1755606666783,-480.0,0.0002,2]
[380200259,1755606666792,-480.0,0.0002,2]
[380200260,1755606666802,-480.0,0.0002,2]
[380200261,1755606666811,-480.0,0.0002,2]
[380200262,1755606666821,-480.0,0.0002,2]
[380200263,1755606666831,-1065.94,0.0002,2]
[380200264,1755606666840,-480.0,0.0002,2]
[380200265,1755606666851,-243.887521,0.0002,2]
[380200266,1755606666860,-243.887521,0.0002,2]
[380200267,1755606666870,-243.887521,0.0002,2]
[380200268,1755606666879,-243.887521,0.0002,2]
[380200269,1755606666888,-243.887521,0.0002,2]
[380200270,1755606666897,-480.0,0.0002,2]
[380200271,1755606666907,-243.887521,0.0002,2]
[380200272,1755606666916,-480.0,0.0002,2]
[380200273,1755606666926,-480.0,0.0002,2]
[380200274,1755606666936,-1735.33,0.0002,2]
[380200275,1755606666945,-480.0,0.0002,2]
[380200276,1755606666954,-480.0,0.0002,2]
[380200277,1755606666963,-930.92,0.0002,2]
[380200278,1755606666972,-480.0,0.0002,2]
[380200279,1755606666981,-480.0,0.0002,2]
[380200280,1755606666990,-151.0,0.0002,2]
[380200281,1755606666999,-151.0,0.0002,2]
[380200282,1755606667008,-151.0,0.0002,2]
[380200283,1755606667017,-480.0,0.0002,2]
[380200284,1755606667027,-480.0,0.0002,2]
[380200285,1755606667036,-480.0,0.0002,2]
[380200286,1755606667044,-480.0,0.0002,2]
[380200287,1755606667052,-480.0,0.0002,2]
[380200288,1755606667060,-480.0,0.0002,2]
[380200289,1755606667068,-480.0,0.0002,2]
[380200290,1755606667076,-728.14,0.0002,2]
[380200291,1755606667085,-151.0,0.0002,2]
[380200292,1755606667095,-151.0,0.0002,2]
[380200293,1755606667104,-151.0,0.0002,2]
[380200294,1755606667113,-480.0,0.0002,2]
[380200295,1755606667122,-151.0,0.0002,2]
[380200296,1755606667131,-151.0,0.0002,2]
[380200297,1755606667140,-189.830599,0.0002,2]
[380200298,1755606667148,-480.0,0.0002,2]
[380200299,1755606667157,-480.0,0.0002,2]
[380200300,1755606667166,-480.0,0.0002,2]
[380200301,1755606667176,-151.0,0.0002,2]
[380200302,1755606667184,-158.72898,0.0002,2]
[380200303,1755606667194,-480.0,0.0002,2]
[380200304,1755606667203,-480.0,0.0002,2]
[380200305,1755606667213,-460.0,0.0002,2]
[380200306,1755606667221,-716.75,0.0002,2]
[380200307,1755606667231,-151.0,0.0002,2]
[380200308,1755606667240,-151.0,0.0002,2]
[380200309,1755606667249,-151.0,0.0002,2]
[380200310,1755606667259,-480.0,0.0002,2]
[380200311,1755606667269,-151.0,0.0002,2]
[380200312,1755606667278,-151.0,0.0002,2]
[380200313,1755606667287,-151.0,0.0002,2]
[380200314,1755606667296,-480.0,0.0002,2]
[380200315,1755606667306,-480.0,0.0002,2]
[380200316,1755606667315,-480.0,0.0002,2]
[380200317,1755606667324,-480.0,0.0002,2]
[380200318,1755606667333,-480.0,0.0002,2]
[380200319,1755606667343,-480.0,0.0002,2]
[380200320,1755606667352,-480.0,0.0002,2]
[380200321,1755606667361,-480.0,0.0002,2]
[380200322,1755606667370,-480.0,0.0002,2]
[380200323,1755606667379,-480.0,0.0002,2]
[380200324,1755606667389,-480.0,0.0002,2]
[380200325,1755606667398,-480.0,0.0002,2]
[380200326,1755606667407,-480.0,0.0002,2]
[380200327,1755606667417,-480.0,0.0002,2]
[380200328,1755606667425,-480.0,0.0002,2]
[380200329,1755606667433,-260.0,0.0002,2]
[380200330,1755606667441,-480.0,0.0002,2]
[380200331,1755606667450,-480.0,0.0002,2]
[380200332,1755606667459,-480.0,0.0002,2]
[380200333,1755606667467,-480.0,0.0002,2]
[380200334,1755606667476,-480.0,0.0002,2]
[380200335,1755606667485,-480.0,0.0002,2]
[380200336,1755606667495,-740.67,0.0002,2]
[380200337,1755606667504,-460.0,0.0002,2]
[380200338,1755606667514,-480.0,0.0002,2]
[380200339,1755606667523,-151.0,0.0002,2]
[380200340,1755606667532,-151.0,0.0002,2]
[380200341,1755606667541,-151.0,0.0002,2]
[380200342,1755606667551,-500.0,0.0002,2]
[380200343,1755606667561,-151.0,0.0002,2]
[380200344,1755606667570,-2744.94,0.0002,2]
[380200345,1755606667579,-151.0,0.0002,2]
[380200346,1755606667589,-151.0,0.0002,2]
[380200347,1755606667599,-480.0,0.0002,2]
[380200348,1755606667609,-151.0,0.0002,2]
[380200349,1755606667618,-480.0,0.0002,2]
[380200350,1755606667627,-151.0,0.0002,2]
[380200351,1755606667637,-480.0,0.0002,2]
[380200352,1755606667646,-151.0,0.0002,2]
[380200353,1755606667655,-417.15472785,0.0002,7]
[380200354,1755606667664,-480.0,0.0002,2]
[380200355,1755606667673,-6851.78,0.0002,2]
[380200356,1755606667683,-480.0,0.0002,2]
[380200357,1755606667692,-480.0,0.0002,2]
[380200358,1755606667701,-676.37,0.0002,2]
[380200359,1755606667710,-482.880756,0.0002,2]
[380200360,1755606667719,-291.67017527,0.0002,2]
[380200361,1755606667739,-191.21058073,0.0002,2]
[380200362,1755606667748,-381.09949674,0.0002,2]
[380200363,1755606667759,-101.78125926,0.0002,2]
[380200364,1755606667768,-480.0,0.0002,2]
[380200365,1755606667777,-13.85792994,0.0002,2]
[380200366,1755606668000,-157.908758,0.00019178,2]
[380200367,1755606668010,-434.821242,0.00019178,2]
[380200368,1755606668358,-45.97497538,0.00019178,2]
[380200369,1755606668368,-480.0,0.00019178,2]
[380200370,1755606668377,-157.908758,0.00019178,2]
[380200371,1755606668386,-157.908758,0.00019452,2]
[380200372,1755606668396,-157.908758,0.00019452,2]
[380200373,1755606668405,-157.908758,0.00019452,2]
[380200374,1755606668415,-386.77830855,0.00019452,2]
[380200375,1755606668424,-157.908758,0.00019452,2]
[380200376,1755606668434,-157.908758,0.00019452,2]
[380200377,1755606668444,-157.908758,0.00019452,2]
[380200378,1755606668453,-157.908758,0.00019726,2]
[380200379,1755606668463,-157.908758,0.00019726,2]
[380200380,1755606668473,-466.14207006,0.0002,2]
[380200381,1755606668483,-482.880756,0.0002,2]
[380200382,1755606668492,-480.0,0.0002,2]
[380200383,1755606668501,-482.880756,0.0002,2]
[380200384,1755606668511,-482.880756,0.0002,2]
[380200385,1755606668520,-198.79811,0.0002,2]
[380200386,1755606668530,-198.79811,0.0002,2]
[380200387,1755606668539,-198.79811,0.0002,2]
[380200388,1755606668548,-731.95,0.0002,2]
[380200389,1755606668558,-480.0,0.0002,2]
[380200390,1755606668568,-198.79811,0.0002,2]
[380200391,1755606668577,-480.0,0.0002,2]
[380200392,1755606668586,-198.79811,0.0002,2]
[380200393,1755606668596,-198.79811,0.0002,2]
[380200394,1755606668605,-480.0,0.0002,2]
[380200395,1755606668614,-442.55965697,0.0002,2]
[380200396,1755606668624,-588.96012546,0.0002,2]
[380200397,1755606668633,-480.0,0.0002,2]
[380200398,1755606668643,-490.88,0.0002,2]
[380200399,1755606668653,-152.087474,0.0002,2]
[380200400,1755606668662,-152.087474,0.0002,2]
[380200401,1755606668672,-152.087474,0.0002,2]
[380200402,1755606668682,-480.0,0.0002,2]
[380200403,1755606668692,-595.1,0.0002,2]
[380200404,1755606668701,-151.0,0.0002,2]
[380200405,1755606668711,-151.0,0.0002,2]
[380200406,1755606668720,-152.087474,0.0002,2]
[380200407,1755606668730,-151.0,0.0002,2]
[380200408,1755606668740,-151.0,0.0002,2]
[380200409,1755606668750,-152.087474,0.0002,2]
[380200410,1755606668759,-151.0,0.0002,2]
[380200411,1755606668769,-152.087474,0.0002,2]
[380200412,1755606668778,-151.0,0.0002,2]
[380200413,1755606668787,-480.0,0.0002,2]
[380200414,1755606668797,-480.0,0.0002,2]
[380200415,1755606668807,-195.113254,0.0002,2]
[380200416,1755606668816,-195.113254,0.0002,2]
[380200417,1755606668826,-195.113254,0.0002,2]
[380200418,1755606668835,-480.0,0.0002,2]
[380200419,1755606668845,-195.113254,0.0002,2]
[380200420,1755606668855,-160.0,0.0002,7]
[380200421,1755606668864,-151.0,0.0002,2]
[380200422,1755606668874,-160.0,0.0002,3]
[380200423,1755606668884,-493.62,0.0002,2]
[380200424,1755606668893,-480.0,0.0002,2]
[380200425,1755606668903,-2671.17,0.0002,2]
[380200426,1755606668913,-500.0,0.0002,2]
[380200427,1755606668923,-480.0,0.0002,2]
[380200428,1755606668933,-195.113254,0.0002,2]
[380200429,1755606668943,-195.113254,0.0002,2]
[380200430,1755606668953,-826.15,0.0002,2]
[380200431,1755606668962,-480.0,0.0002,2]
[380200432,1755606668972,-480.0,0.0002,2]
[380200433,1755606668982,-2025.37,0.0002,2]
[380200434,1755606668991,-1110.34,0.0002,2]
[380200435,1755606669000,-480.0,0.0002,2]
[380200436,1755606669010,-480.0,0.0002,2]
[380200437,1755606669020,-637.0,0.0002,2]
[380200438,1755606669030,-480.0,0.0002,2]
[380200439,1755606669039,-151.0,0.0002,2]
[380200440,1755606669049,-480.0,0.0002,2]
[380200441,1755606669058,-151.0,0.0002,2]
[380200442,1755606669067,-480.0,0.0002,2]
[380200443,1755606669076,-292.212651,0.0002,2]
[380200444,1755606669085,-480.0,0.0002,2]
[380200445,1755606669095,-277.62046848,0.0002,2]
[380200446,1755606669104,-154.42863123,0.0002,2]
[380200447,1755606669113,-1463.26,0.0002,2]
[380200448,1755606669122,-500.0,0.0002,2]
[380200449,1755606669132,-500.0,0.0002,2]
[380200450,1755606669141,-480.0,0.0002,2]
[380200451,1755606669150,-480.0,0.0002,2]
[380200452,1755606669160,-652.34,0.0002,2]
[380200453,1755606669172,-151.0,0.0002,2]
[380200454,1755606669183,-151.0,0.0002,2]
[380200455,1755606669192,-151.0,0.0002,2]
[380200456,1755606669202,-151.0,0.0002,2]
[380200457,1755606669213,-528.6845513,0.0002,7]
[380200458,1755606669222,-480.0,0.0002,2]
[380200459,1755606669232,-480.0,0.0002,2]
[380200460,1755606669241,-480.0,0.0002,2]
[380200461,1755606669252,-238.92134381,0.0002,2]
[380200462,1755606669262,-151.0,0.0002,2]